fUST/lending_fUST_20251010
["ID","MTS","AMOUNT","RATE_DAILY","PERIOD"]
[390555159,1760082653978,-151.0,0.0001726,2]
[390555161,1760082653988,-500.0,0.0001726,2]
[390555163,1760082653997,-151.0,0.0001726,2]
[390555165,1760082654006,-151.0,0.0001726,2]
[390555167,1760082654016,-185.618188,0.0001726,2]
[390555169,1760082654025,-500.0,0.0001726,2]
[390555170,1760082654035,-500.0,0.0001726,2]
[390555172,1760082654045,-153.62335116,0.0001726,2]
[390555174,1760082654055,-3460.43,0.0001726,2]
[390555176,1760082654064,-338.03,0.0001726,2]
[390555178,1760082654074,-168.10077244,0.00017288,2]
[390555180,1760082654083,-445.29893186,0.000173,2]
[390555182,1760082654092,-151.0,0.000173,2]
[390555184,1760082654101,-1152.50691993,0.000173,2]
[390555185,1760082654111,-151.0,0.000173,2]
[390555187,1760082654120,-1461.0,0.00017315,2]
[390555189,1760082654130,-1461.0,0.0001737,2]
[390555191,1760082654139,-151.0,0.000174,2]
[390555193,1760082654149,-340.5580039,0.000174,2]
[390555195,1760082654158,-1360.86978358,0.000174,2]
[390555197,1760082654168,-382.3163044,0.000174,2]
[390555199,1760082654178,-1527.73595237,0.000174,2]
[390555201,1760082654187,-151.0,0.000174,2]
[390555202,1760082654196,-250.59301489,0.000174,2]
[390555204,1760082654207,-1002.37205957,0.000174,2]
[390555206,1760082654217,-2255.33713403,0.000174,2]
[390555207,1760082654227,-4009.48823828,0.000174,2]
[390555209,1760082654236,-6264.82537232,0.000174,2]
[390555211,1760082654246,-9012.3271876,0.000174,2]
[390555213,1760082654255,-1000.0,0.00017412,2]
[390555215,1760082654265,-1000.0,0.00017412,2]
[390555217,1760082654274,-678.5151,0.00017412,2]
[390555218,1760082654283,-235.0,0.00017415,2]
[390555220,1760082654292,-1232.0,0.00017418,2]
[390555222,1760082654302,-1461.0,0.00017424,2]
[390555224,1760082654312,-558.94592125,0.00017434,2]
[390555226,1760082654322,-189.6925741,0.00017447,2]
[390555228,1760082654332,-162.7393299,0.00017447,2]
[390555230,1760082654342,-297.7747917,0.00017447,2]
[390555232,1760082654352,-189.6925741,0.00017447,2]
[390555233,1760082654361,-189.6925741,0.00017447,2]
[390555235,1760082654371,-597.4932439,0.00017447,2]
[390555237,1760082654382,-189.6925741,0.00017447,2]
[390555239,1760082654392,-153.0,0.00017447,2]
[390555241,1760082654402,-189.6925741,0.00017447,2]
[390555243,1760082654411,-189.6925741,0.00017447,2]
[390555245,1760082654421,-444.9475482,0.00017447,2]
[390555246,1760082654431,-189.6925741,0.00017447,2]
[390555248,1760082654440,-379.1970276,0.00017447,2]
[390555250,1760082654452,-174.0148677,0.00017447,2]
[390555252,1760082654462,-401.1231576,0.00017447,2]
[390555254,1760082654471,-1232.0,0.00017459,2]
[390555256,1760082654481,-1232.0,0.00017475,2]
[390555258,1760082654493,-1461.0,0.00017479,2]
[390555260,1760082654503,-445.29893186,0.000175,2]
[390555262,1760082654512,-320.003172,0.000175,2]
[390555264,1760082654522,-320.003172,0.000175,2]
[390555265,1760082654531,-320.003172,0.000175,2]
[390555267,1760082654541,-320.003172,0.000175,2]
[390555269,1760082654550,-405.781744,0.000175,2]
[390555271,1760082654559,-405.781744,0.000175,2]
[390555273,1760082654568,-405.781744,0.000175,2]
[390555275,1760082654578,-405.781744,0.000175,2]
[390555277,1760082654587,-151.0,0.000175,2]
[390555279,1760082654596,-151.0,0.000175,2]
[390555281,1760082654605,-151.0,0.000175,2]
[390555282,1760082654614,-151.0,0.000175,2]
[390555284,1760082654623,-151.0,0.000175,2]
[390555286,1760082654632,-151.0,0.000175,2]
[390555288,1760082654641,-151.0,0.000175,2]
[390555289,1760082654649,-151.0,0.000175,2]
[390555291,1760082654658,-151.0,0.000175,2]
[390555293,1760082654667,-151.0,0.000175,2]
[390555295,1760082654675,-217.454934,0.000175,2]
[390555297,1760082654684,-217.454934,0.000175,2]
[390555299,1760082654693,-217.454934,0.000175,2]
[390555300,1760082654703,-217.454942,0.000175,2]
[390555302,1760082654711,-151.0,0.000175,2]
[390555304,1760082654721,-151.0,0.000175,2]
[390555306,1760082654731,-223764.46018639,0.000175,2]
[390555308,1760082654740,-1461.0,0.00017534,2]
[390555310,1760082654750,-500.0,0.00017534,2]
[390555311,1760082654759,-500.0,0.00017534,2]
[390555313,1760082654768,-505.04743066,0.00017534,2]
[390555315,1760082654777,-500.0,0.00017534,2]
[390555317,1760082654788,-500.0,0.00017534,2]
[390555318,1760082654797,-500.0,0.00017534,2]
[390555319,1760082654807,-848.6,0.00017534,2]
[390555320,1760082654817,-500.0,0.00017534,2]
[390555321,1760082654826,-500.0,0.00017534,2]
[390555322,1760082654836,-875.94,0.00017534,2]
[390555323,1760082654846,-500.0,0.00017534,2]
[390555324,1760082654855,-256.33792336,0.00017534,2]
[390555325,1760082654864,-1214.46,0.00017534,2]
[390555326,1760082654874,-500.0,0.00017534,2]
[390555327,1760082654883,-1111.51,0.00017534,2]
[390555328,1760082654893,-388.48778903,0.00017534,2]
[390555329,1760082654902,-500.0,0.00017534,2]
[390555330,1760082654912,-500.0,0.00017534,2]
[390555331,1760082654921,-500.0,0.00017534,2]
[390555332,1760082654930,-500.0,0.00017534,2]
[390555333,1760082654939,-500.0,0.00017534,2]
[390555334,1760082654949,-500.0,0.00017534,2]
[390555335,1760082654958,-500.0,0.00017534,2]
[390555336,1760082654967,-240.10402428,0.00017534,2]
[390555337,1760082654976,-500.0,0.00017534,2]
[390555338,1760082654985,-500.0,0.00017534,2]
[390555339,1760082654995,-818.44,0.00017534,2]
[390555340,1760082655004,-500.0,0.00017534,2]
[390555341,1760082655014,-500.0,0.00017534,2]
[390555342,1760082655023,-645.31,0.00017534,2]
[390555343,1760082655032,-500.0,0.00017534,2]
[390555344,1760082655041,-500.0,0.00017534,2]
[390555345,1760082655050,-615.6,0.00017534,2]
[390555346,1760082655059,-500.0,0.00017534,2]
[390555347,1760082655068,-500.0,0.00017534,2]
[390555348,1760082655077,-576.64651153,0.00017534,2]
[390555349,1760082655086,-500.0,0.00017534,2]
[390555350,1760082655096,-979.59,0.00017534,2]
[390555351,1760082655106,-874.68,0.00017534,2]
[390555352,1760082655116,-500.0,0.00017534,2]
[390555353,1760082655125,-300.0,0.00017534,2]
[390555354,1760082655134,-500.0,0.00017534,2]
[390555355,1760082655143,-327.42377819,0.00017534,2]
[390555356,1760082655153,-500.0,0.00017534,2]
[390555357,1760082655162,-972.03,0.00017534,2]
[390555358,1760082655171,-500.0,0.00017534,2]
[390555359,1760082655179,-500.0,0.00017534,2]
[390555360,1760082655189,-877.09,0.00017534,2]
[390555361,1760082655198,-434.65899531,0.00017534,2]
[390555362,1760082655207,-500.0,0.00017534,2]
[390555363,1760082655216,-500.0,0.00017534,2]
[390555364,1760082655224,-500.0,0.00017534,2]
[390555366,1760082655234,-500.0,0.00017534,2]
[390555367,1760082655243,-500.0,0.00017534,2]
[390555368,1760082655252,-461.63971521,0.00017534,2]
[390555370,1760082655262,-500.0,0.00017534,2]
[390555372,1760082655271,-636.23,0.00017534,2]
[390555374,1760082655283,-500.0,0.00017534,2]
[390555376,1760082655292,-399.08096042,0.00017534,2]
[390555378,1760082655301,-500.0,0.00017534,2]
[390555380,1760082655310,-937.69,0.00017534,2]
[390555382,1760082655321,-500.0,0.00017534,2]
[390555384,1760082655330,-500.0,0.00017534,2]
[390555386,1760082655340,-500.0,0.00017534,2]
[390555388,1760082655348,-500.0,0.00017534,2]
[390555390,1760082655358,-500.0,0.00017534,2]
[390555392,1760082655366,-222.98487698,0.00017534,2]
[390555393,1760082655375,-500.0,0.00017534,2]
[390555395,1760082655385,-893.09,0.00017534,2]
[390555397,1760082655394,-500.0,0.00017534,2]
[390555399,1760082655404,-1196.48,0.00017534,2]
[390555401,1760082655413,-501.63990512,0.00017534,2]
[390555403,1760082655423,-500.0,0.00017534,2]
[390555405,1760082655432,-500.0,0.00017534,2]
[390555407,1760082655442,-7550.27,0.00017534,2]
[390555409,1760082655454,-504.194854,0.00017534,2]
[390555411,1760082655464,-500.0,0.00017534,2]
[390555413,1760082655473,-500.0,0.00017534,2]
[390555415,1760082655482,-500.0,0.00017534,2]
[390555417,1760082655491,-500.0,0.00017534,2]
[390555419,1760082655500,-500.0,0.00017534,2]
[390555421,1760082655509,-500.0,0.00017534,2]
[390555423,1760082655519,-624.89837122,0.00017534,2]
[390555425,1760082655530,-260.75187693,0.00017534,2]
[390555427,1760082655541,-184.03435143,0.00017534,2]
[390555429,1760082655550,-500.0,0.00017534,2]
[390555431,1760082655559,-500.0,0.00017534,2]
[390555433,1760082655569,-503.7590767,0.00017534,2]
[390555435,1760082655578,-505.37018724,0.00017534,2]
[390555437,1760082655588,-606.63815036,0.00017534,2]
[390555439,1760082655597,-826.52,0.00017534,2]
[390555441,1760082655607,-500.0,0.00017534,2]
[390555443,1760082655616,-2252.29,0.00017534,2]
[390555444,1760082655626,-500.0,0.00017534,2]
[390555446,1760082655636,-500.0,0.00017534,2]
[390555448,1760082655645,-500.0,0.00017534,2]
[390555450,1760082655654,-500.0,0.00017534,2]
[390555452,1760082655664,-500.0,0.00017534,2]
[390555454,1760082655673,-500.0,0.00017534,2]
[390555456,1760082655684,-500.0,0.00017534,2]
[390555458,1760082655698,-500.0,0.00017534,2]
[390555460,1760082655707,-479.28879186,0.00017534,2]
[390555462,1760082655716,-500.0,0.00017534,2]
[390555464,1760082655725,-441.73801122,0.00017534,2]
[390555466,1760082655735,-602.08488313,0.00017534,2]
[390555468,1760082655744,-500.0,0.00017534,2]
[390555470,1760082655753,-500.0,0.00017534,2]
[390555472,1760082655763,-1067.95,0.00017534,2]
[390555474,1760082655771,-500.0,0.00017534,2]
[390555476,1760082655780,-1601.67,0.00017534,2]
[390555478,1760082655790,-500.0,0.00017534,2]
[390555480,1760082655800,-500.0,0.00017534,2]
[390555482,1760082655809,-500.0,0.00017534,2]
[390555483,1760082655819,-500.0,0.00017534,2]
[390555485,1760082655830,-500.0,0.00017534,2]
[390555487,1760082655840,-500.0,0.00017534,2]
[390555490,1760082655850,-503.4541586,0.00017534,2]
[390555491,1760082655860,-500.0,0.00017534,2]
[390555493,1760082655869,-500.0,0.00017534,2]
[390555495,1760082655879,-500.0,0.00017534,2]
[390555497,1760082655888,-500.0,0.00017534,2]
[390555499,1760082655898,-500.0,0.00017534,2]
[390555501,1760082655907,-1010.45,0.00017534,2]
[390555503,1760082655917,-938.39,0.00017534,2]
[390555505,1760082655926,-500.0,0.00017534,2]
[390555507,1760082655935,-503.73633333,0.00017534,2]
[390555509,1760082655945,-500.0,0.00017534,2]
[390555511,1760082655954,-641.83,0.00017534,2]
[390555513,1760082655963,-500.0,0.00017534,2]
[390555515,1760082655972,-1039.02,0.00017534,2]
[390555517,1760082655981,-500.0,0.00017534,2]
[390555519,1760082655991,-500.0,0.00017534,2]
[390555521,1760082656000,-500.0,0.00017534,2]
[390555523,1760082656009,-500.0,0.00017534,2]
[390555525,1760082656018,-500.0,0.00017534,2]
[390555527,1760082656027,-500.0,0.00017534,2]
[390555529,1760082656038,-500.0,0.00017534,2]
[390555531,1760082656047,-1806.92,0.00017534,2]
[390555533,1760082656056,-500.0,0.00017534,2]
[390555535,1760082656065,-500.0,0.00017534,2]
[390555537,1760082656074,-500.0,0.00017534,2]
[390555539,1760082656083,-500.0,0.00017534,2]
[390555541,1760082656091,-1445.37,0.00017534,2]
[390555543,1760082656100,-500.0,0.00017534,2]
[390555544,1760082656110,-500.0,0.00017534,2]
[390555546,1760082656119,-500.0,0.00017534,2]
[390555548,1760082656128,-566.29,0.00017534,2]
[390555550,1760082656137,-747.05,0.00017534,2]
[390555552,1760082656146,-500.0,0.00017534,2]
[390555554,1760082656155,-500.0,0.00017534,2]
[390555556,1760082656163,-320.003172,0.00017534,2]
[390555558,1760082656173,-320.003172,0.00017534,2]
[390555560,1760082656182,-320.003172,0.00017534,2]
[390555562,1760082656191,-500.0,0.00017534,2]
[390555564,1760082656200,-320.003182,0.00017534,2]
[390555566,1760082656209,-1519.29,0.00017534,2]
[390555568,1760082656218,-405.781744,0.00017534,2]
[390555570,1760082656227,-500.0,0.00017534,2]
[390555572,1760082656237,-405.781744,0.00017534,2]
[390555574,1760082656246,-5616.46,0.00017534,2]
[390555576,1760082656260,-202.72437659,0.00017534,2]
[390555578,1760082656269,-405.781744,0.00017534,2]
[390555580,1760082656278,-776.54,0.00017534,2]
[390555594,1760082656411,-405.781748,0.00017534,2]
[390555596,1760082656420,-791.64,0.00017534,2]
[390555598,1760082656429,-502.52250354,0.00017534,2]
[390555600,1760082656439,-2144.57,0.00017534,2]
[390555602,1760082656454,-500.0,0.00017534,2]
[390555604,1760082656470,-500.0,0.00017534,2]
[390555606,1760082656485,-2842.6,0.00017534,2]
[390555608,1760082656496,-500.0,0.00017534,2]
[390555610,1760082656505,-5591.99,0.00017534,2]
[390555612,1760082656514,-864.2,0.00017534,2]
[390555614,1760082656524,-500.0,0.00017534,2]
[390555616,1760082656534,-860.68,0.00017534,2]
[390555618,1760082656543,-500.0,0.00017534,2]
[390555620,1760082656553,-500.0,0.00017534,2]
[390555622,1760082656562,-500.0,0.00017534,2]
[390555624,1760082656571,-3263.64,0.00017534,2]
[390555626,1760082656580,-926.29,0.00017534,2]
[390555628,1760082656589,-946.12,0.00017534,2]
[390555630,1760082656598,-500.0,0.00017534,2]
[390555632,1760082656607,-964.12,0.00017534,2]
[390555634,1760082656616,-500.0,0.00017534,2]
[390555636,1760082656626,-1064.23,0.00017534,2]
[390555638,1760082656635,-2438.53,0.00017534,2]
[390555640,1760082656645,-500.0,0.00017534,2]
[390555642,1760082656654,-1251.07,0.00017534,2]
[390555644,1760082656663,-500.0,0.00017534,2]
[390555646,1760082656672,-502.63951751,0.00017534,2]
[390555648,1760082656681,-1423.15,0.00017534,2]
[390555650,1760082656690,-151.0,0.00017534,2]
[390555652,1760082656700,-2083.23,0.00017534,2]
[390555654,1760082656709,-151.0,0.00017534,2]
[390555656,1760082656719,-503.19870999,0.00017534,2]
[390555658,1760082656730,-500.0,0.00017534,2]
[390555660,1760082656740,-1350.6,0.00017534,2]
[390555661,1760082656750,-500.0,0.00017534,2]
[390555663,1760082656760,-1350.41,0.00017534,2]
[390555665,1760082656769,-500.0,0.00017534,2]
[390555667,1760082656778,-754.23,0.00017534,2]
[390555669,1760082656788,-500.0,0.00017534,2]
[390555671,1760082656797,-500.0,0.00017534,2]
[390555673,1760082656807,-151.0,0.00017534,2]
[390555675,1760082656816,-641.79,0.00017534,2]
[390555677,1760082656825,-636.81915855,0.00017534,2]
[390555679,1760082656834,-500.0,0.00017534,2]
[390555681,1760082656844,-151.0,0.00017534,2]
[390555683,1760082656853,-664.23,0.00017534,2]
[390555685,1760082656862,-497.8664528,0.00017534,2]
[390555687,1760082656871,-500.0,0.00017534,2]
[390555689,1760082656880,-749.82,0.00017534,2]
[390555691,1760082656889,-970.64,0.00017534,2]
[390555693,1760082656899,-500.0,0.00017534,2]
[390555695,1760082656908,-500.0,0.00017534,2]
[390555697,1760082656917,-500.0,0.00017534,2]
[390555699,1760082656926,-4270.81,0.00017534,2]
[390555701,1760082656935,-500.0,0.00017534,2]
[390555703,1760082656944,-500.0,0.00017534,2]
[390555705,1760082656954,-502.97428733,0.00017534,2]
[390555707,1760082656963,-500.0,0.00017534,2]
[390555709,1760082656972,-613.59,0.00017534,2]
[390555711,1760082656981,-500.0,0.00017534,2]
[390555713,1760082656991,-215.65387175,0.00017534,2]
[390555715,1760082657002,-2148.53,0.00017534,2]
[390555717,1760082657011,-500.0,0.00017534,2]
[390555719,1760082657020,-648.81,0.00017534,2]
[390555721,1760082657030,-2090.99,0.00017534,2]
[390555723,1760082657041,-959.4,0.00017534,2]
[390555725,1760082657051,-901.32,0.00017534,2]
[390555727,1760082657060,-154.80812956,0.00017534,2]
[390555729,1760082657069,-500.0,0.00017534,2]
[390555731,1760082657078,-500.0,0.00017534,2]
[390555733,1760082657087,-3460.43,0.00017534,2]
[390555735,1760082657095,-500.0,0.00017573,2]
[390555737,1760082657104,-500.0,0.00017573,2]
[390555738,1760082657114,-500.0,0.00017573,2]
[390555741,1760082657124,-500.0,0.00017573,2]
[390555742,1760082657133,-505.45386967,0.00017573,2]
[390555744,1760082657143,-498.33544719,0.00017573,2]
[390555746,1760082657152,-642.55581265,0.00017573,2]
[390555748,1760082657161,-165.24160476,0.00017573,2]
[390555750,1760082657171,-500.0,0.00017573,2]
[390555752,1760082657180,-500.0,0.00017573,2]
[390555754,1760082657189,-500.0,0.00017573,2]
[390555757,1760082657199,-500.0,0.00017573,2]
[390555758,1760082657208,-500.0,0.00017573,2]
[390555760,1760082657218,-500.34845163,0.00017573,2]
[390555762,1760082657227,-500.0,0.00017573,2]
[390555765,1760082657236,-500.0,0.00017573,2]
[390555766,1760082657245,-214.21809975,0.00017573,2]
[390555768,1760082657254,-500.53836085,0.00017573,2]
[390555771,1760082657263,-500.0,0.00017573,2]
[390555772,1760082657272,-627.54677909,0.00017573,2]
[390555774,1760082657282,-500.0,0.00017573,2]
[390555776,1760082657293,-500.0,0.00017573,2]
[390555778,1760082657302,-500.0,0.00017573,2]
[390555780,1760082657311,-500.0,0.00017573,2]
[390555782,1760082657321,-500.0,0.00017573,2]
[390555784,1760082657330,-501.05544168,0.00017573,2]
[390555786,1760082657339,-501.28009836,0.00017573,2]
[390555788,1760082657348,-500.0,0.00017573,2]
[390555790,1760082657357,-500.0,0.00017573,2]
[390555792,1760082657367,-500.0,0.00017573,2]
[390555794,1760082657376,-500.0,0.00017573,2]
[390555796,1760082657385,-500.0,0.00017573,2]
[390555798,1760082657395,-500.0,0.00017573,2]
[390555800,1760082657405,-500.0,0.00017573,2]
[390555802,1760082657414,-500.0,0.00017573,2]
[390555805,1760082657424,-500.0,0.00017573,2]
[390555806,1760082657433,-500.86991837,0.00017573,2]
[390555808,1760082657442,-500.0,0.00017573,2]
[390555810,1760082657456,-500.0,0.00017573,2]
[390555812,1760082657465,-500.0,0.00017573,2]
[390555814,1760082657475,-500.0,0.00017573,2]
[390555816,1760082657484,-500.0,0.00017573,2]
[390555818,1760082657495,-500.0,0.00017573,2]
[390555820,1760082657504,-157.30324439,0.00017573,2]
[390555822,1760082657513,-500.0,0.00017573,2]
[390555824,1760082657524,-163.86589524,0.00017573,2]
[390555836,1760082657736,-336.13410476,0.00017573,2]
[390555838,1760082657745,-376.98246193,0.00017573,2]
[390555989,1760082659137,-502.65792864,0.00016438,2]
[390555990,1760082659146,-500.0,0.00016438,2]
[390555993,1760082659155,-500.0,0.00016438,2]
[390555994,1760082659164,-615.32,0.00016712,2]
[390555997,1760082659174,-1082.32,0.00016986,2]
[390555999,1760082659184,-500.0,0.00016986,2]
[390556001,1760082659193,-1082.32,0.0001726,2]
[390556002,1760082659202,-500.0,0.0001726,2]
[390556004,1760082659211,-508.61087227,0.00017534,2]
[390556007,1760082659220,-1082.32,0.00017534,2]
[390556009,1760082659230,-123.01753807,0.00017573,2]
[390556011,1760082659239,-500.0,0.00017573,2]
[390556013,1760082659248,-500.0,0.00017573,2]
[390556015,1760082659257,-500.0,0.00017573,2]
[390556017,1760082659266,-500.0,0.00017573,2]
[390556019,1760082659276,-500.0,0.00017573,2]
[390556020,1760082659285,-1232.0,0.00017585,2]
[390556023,1760082659295,-1461.0,0.00017589,2]
[390556025,1760082659304,-2110.67602749,0.000176,2]
[390556026,1760082659313,-301.21304753,0.00017638,2]
[390556030,1760082659340,-148.53775304,0.00017638,2]
[390556032,1760082659349,-1461.0,0.00017643,2]
[390556034,1760082659358,-235.0,0.00017664,2]
[390556036,1760082659368,-235.0,0.00017686,2]
[390556038,1760082659378,-1476.87936089,0.00017698,2]
[390556040,1760082659387,-1232.0,0.00017699,2]
[390556042,1760082659396,-445.29893186,0.000177,2]
[390556045,1760082659406,-235.0,0.00017713,2]
[390556047,1760082659417,-235.0,0.00017723,2]
[390556049,1760082659426,-235.0,0.00017731,2]
[390556051,1760082659435,-235.0,0.00017777,2]
[390556053,1760082659444,-1090.37488653,0.00017783,2]
[390556285,1760082661647,-592.74,0.00016438,2]
[390556287,1760082661657,-592.74,0.00016712,2]
[390556288,1760082661666,-193.639036,0.00016766,2]
[390556291,1760082661675,-151.0,0.00016766,2]
[390556292,1760082661685,-193.639036,0.00016766,2]
[390556294,1760082661695,-193.639036,0.00016986,2]
[390556296,1760082661705,-151.0,0.00016986,2]
[390556298,1760082661714,-592.74,0.00016986,2]
[390556300,1760082661723,-193.639036,0.0001726,2]
[390556302,1760082661732,-193.639036,0.0001726,2]
[390556304,1760082661742,-592.74,0.0001726,2]
[390556306,1760082661751,-193.639036,0.000175,2]
[390556308,1760082661760,-141.62511347,0.00017783,2]
[390556310,1760082661769,-952.94,0.00017798,3]
[390556312,1760082661778,-476.46,0.00017798,3]
[390556314,1760082661788,-933.12,0.000178,7]
[390556316,1760082661797,-153.717768,0.000178,4]
[390556318,1760082661806,-235.0,0.00017804,2]
[390556320,1760082661816,-500.0,0.00017808,2]
[390556322,1760082661824,-500.0,0.00017808,2]
[390556324,1760082661834,-500.0,0.00017808,2]
[390556326,1760082661843,-500.0,0.00017808,2]
[390556327,1760082661852,-1000.0,0.00017808,2]
[390556329,1760082661861,-500.0,0.00017808,2]
[390556331,1760082661870,-848.6,0.00017808,2]
[390556333,1760082661879,-500.0,0.00017808,2]
[390556335,1760082661888,-500.0,0.00017808,2]
[390556337,1760082661898,-875.94,0.00017808,2]
[390556339,1760082661908,-500.0,0.00017808,2]
[390556341,1760082661917,-1214.46,0.00017808,2]
[390556343,1760082661926,-500.0,0.00017808,2]
[390556345,1760082661935,-1111.51,0.00017808,2]
[390556347,1760082661944,-500.0,0.00017808,2]
[390556349,1760082661954,-500.0,0.00017808,2]
[390556351,1760082661963,-532.55845623,0.00017808,2]
[390556353,1760082661972,-386.9531703,0.00017808,2]
[390556388,1760082662314,-500.0,0.00016437,2]
[390556390,1760082662323,-222.46611655,0.00016438,2]
[390556392,1760082662333,-500.0,0.00016438,2]
[390556394,1760082662342,-500.0,0.00016712,2]
[390556396,1760082662351,-193.639036,0.00016766,2]
[390556398,1760082662360,-193.639036,0.00016986,2]
[390556400,1760082662369,-193.639036,0.00016986,2]
[390556402,1760082662379,-206.33111145,0.00017139,2]
[390556905,1760082668491,8769.99,0.00029635,60]
[390559166,1760082713290,1000.0,0.00027397,120]
[390559167,1760082818003,3000.0,0.00024,30]
[390559168,1760082915111,2699.0,0.00029556,120]
[390559170,1760083058837,172.218366,0.00029556,120]
[390559171,1760083098923,809.042063,0.00013699,2]
[390559173,1760083119590,3000.0,0.00029556,120]
[390559174,1760083135842,2032.0,0.00029556,60]
[390559175,1760083194116,10039.0,0.00029556,60]
[390559176,1760083299227,923.0,0.00028767,120]
[390559177,1760083336414,403.67387258,0.00028767,120]
[390559178,1760083412375,153.717768,0.00024,30]
[390559179,1760083412626,153.717768,0.00024,30]
[390559180,1760083472822,200.0,0.00028574,120]
[390559182,1760083578108,3000.0,0.00028,120]
[390559183,1760083652530,200.0,0.00028183,120]
[390559185,1760083678613,5171.6600952,0.00015433,2]
[390559186,1760083705603,200000.0,0.000287,120]
[390559187,1760083713442,1004.273,0.00028,120]
[390559188,1760083729848,1004.273,0.00028,120]
[390559189,1760083736129,1004.273,0.00028,120]
[390559190,1760083745402,1004.273,0.00028,120]
[390559241,1760083832341,-447.156737,0.00016338,2]
[390559243,1760083832351,-330.04789518,0.00016338,2]
[390559245,1760083832360,-171.20339965,0.00016338,2]
[390559247,1760083832370,-342.0,0.00016356,3]
[390559250,1760083832380,-399.4,0.00016428,3]
[390559252,1760083832391,-1000.0,0.00016428,2]
[390559254,1760083832401,-500.0,0.00016437,2]
[390559256,1760083832412,-500.0,0.00016437,2]
[390559258,1760083832422,-300.0,0.00016437,2]
[390559260,1760083832432,-500.0,0.00016438,2]
[390559262,1760083832441,-500.0,0.00016438,2]
[390559264,1760083832450,-501.56289255,0.00016438,2]
[390559266,1760083832460,-500.0,0.00016438,2]
[390559268,1760083832469,-500.0,0.00016438,2]
[390559270,1760083832479,-398.80233492,0.00016438,2]
[390559272,1760083832488,-504.42472204,0.00016438,2]
[390559274,1760083832498,-500.0,0.00016438,2]
[390559275,1760083832507,-500.0,0.00016438,2]
[390559278,1760083832517,-500.0,0.00016438,2]
[390559280,1760083832526,-500.0,0.00016438,2]
[390559282,1760083832535,-500.0,0.00016438,2]
[390559283,1760083832544,-500.0,0.00016438,2]
[390559286,1760083832558,-500.0,0.00016438,2]
[390559287,1760083832567,-243.81529387,0.00016438,2]
[390559289,1760083832577,-500.0,0.00016438,2]
[390559291,1760083832587,-527.5060411,0.00016438,2]
[390559292,1760083832596,-500.0,0.00016438,2]
[390559293,1760083832606,-500.70192007,0.00016438,2]
[390559294,1760083832615,-500.0,0.00016438,2]
[390559295,1760083832625,-500.0,0.00016438,2]
[390559296,1760083832635,-488.61603708,0.00016438,2]
[390559297,1760083832644,-500.0,0.00016438,2]
[390559298,1760083832654,-500.0,0.00016438,2]
[390559299,1760083832663,-502.08894967,0.00016438,2]
[390559300,1760083832673,-500.0,0.00016438,2]
[390559301,1760083832683,-501.93488945,0.00016438,2]
[390559302,1760083832695,-500.0,0.00016438,2]
[390559303,1760083832707,-500.0,0.00016438,2]
[390559304,1760083832717,-500.0,0.00016438,2]